bitfinex-derivatives/quotes_SOLF0:USTF0_20251219
["timestamp","ask_amount","ask_price","bid_price","bid_amount"]
[1766183125768,27.01,126.94,126.88,7.23]
[1766183126768,0.05564429,126.92,126.9,0.05103995]
[1766183147094,26.0,127.01,126.91,6.66]
[1766183148189,0.0578212,126.97,126.95,0.05483558]
[1766183148393,0.05322629,126.97,126.95,0.05483558]
[1766183150688,26.0,127.03,126.95,6.62483558]
[1766183150887,26.0,127.03,126.95,6.57]
[1766183151299,26.0,127.03,126.95,12.36988395]
[1766183151600,26.0,127.03,126.96,6.57]
[1766183151798,0.05961092,127.01,126.98,0.05255901]
[1766183155498,26.0,127.03,126.98,6.54255901]
[1766183156602,0.00108536,127.02,126.98,0.05255901]
[1766183160702,26.00108536,127.02,126.98,0.05255901]
[1766183165908,26.00108536,127.02,126.94,6.24]
[1766183166095,26.0,127.02,126.94,6.24]
[1766183166910,0.05631586,126.99,126.97,0.05403293]
[1766183167109,0.05069969,126.99,126.97,0.05824996]
[1766183167909,0.05069969,126.99,126.94,6.24]
[1766183168112,24.85069969,126.99,126.94,6.24]
[1766183168914,24.85069969,126.99,126.95,0.05573616]
[1766183170413,0.05069969,126.99,126.95,6.33573616]
[1766183187324,0.05069969,126.99,126.95,16.11559321]
[1766183187527,0.05069969,126.99,126.96,6.0]
[1766183191430,0.05069969,126.99,126.96,15.77985705]
[1766183194333,0.05069969,126.99,126.97,9.77985705]
[1766183194537,0.05069969,126.99,126.96,15.77985705]
[1766183194927,158.09372151,127.09,126.95,0.05573616]
[1766183194928,10.7911854,127.08,126.98,6.58]
[1766183195135,3.7048854,127.08,127.0,6.58]
[1766183195334,3.7048854,127.08,127.0,16.35985705]
[1766183196028,0.05491307,127.05,127.0,16.35985705]
[1766183197029,24.72491307,127.05,127.01,0.05594594]
[1766183205542,24.72491307,127.05,127.01,10.23083134]
[1766183205543,0.05491307,127.05,127.01,10.23083134]
[1766183207441,0.05491307,127.05,127.02,6.43]
[1766183211149,0.00491307,127.05,127.02,6.43]
[1766183230156,0.00491307,127.05,127.02,16.20985705]
[1766183232046,26.09491307,127.05,127.01,0.05594594]
[1766183232251,0.00491307,127.05,127.01,5.98594594]
[1766183237857,0.00491307,127.05,127.01,0.05594594]
[1766183242061,0.00491307,127.05,127.01,9.83580299]
[1766183248786,0.00491307,127.05,126.97,14.65467393]
[1766183248990,26.09,127.07,126.98,30.17467393]
[1766183249195,26.09,127.07,126.98,15.52]
[1766183249686,5.78389422,127.09,126.98,15.52]
[1766183249687,24.32,127.03,127.01,0.05274722]
[1766183249985,24.32,127.03,127.01,0.06052529]
[1766183252584,24.32,127.03,127.01,0.00052529]
[1766183254179,24.32,127.07,127.01,15.53052529]
[1766183254373,24.32,127.07,127.01,15.53]
[1766183255284,0.05836067,127.05,127.03,0.05153704]
[1766183255481,0.04974013,127.05,127.03,0.05382064]
[1766183256688,23.36974013,127.05,127.03,0.00382064]
[1766183288721,23.36974013,127.05,127.03,9.79820092]
[1766183288924,23.36974013,127.05,127.03,0.00382064]
[1766183294326,23.36974013,127.05,126.99,9.79475985]
[1766183294530,6.06,127.03,126.95,22.89]
[1766183295025,6.06,127.03,126.93,22.89]
[1766183295026,116.3314,127.03,126.93,22.89]
[1766183295221,0.05882077,126.99,126.97,0.05582816]
[1766183295532,6.01,126.98,126.93,22.89]
[1766183295733,6.01,126.98,126.88,22.89]
[1766183296037,5.89,126.97,126.88,22.89]
[1766183296531,0.0581533,126.94,126.91,0.05465215]
[1766183299132,5.7081533,126.94,126.91,0.05465215]
[1766183301024,0.0581533,126.94,126.91,0.05465215]
[1766183303535,0.0581533,126.94,126.91,23.23465215]
[1766183304927,6.6781533,126.94,126.91,0.00465215]
[1766183305632,6.6781533,126.94,126.85,69.68]
[1766183305824,6.72,126.93,126.85,24.55126645]
[1766183306224,6.72,126.93,126.86,23.18]
[1766183306724,0.05906924,126.91,126.88,0.05938507]
[1766183309035,0.05906924,126.91,126.88,23.23938507]
[1766183309234,7.24,126.93,126.88,0.05938507]
[1766183310238,7.44296267,126.92,126.88,0.05938507]
[1766183310631,7.47,126.91,126.85,1.37126645]
[1766183310836,7.47,126.91,126.83,23.18]
[1766183311036,7.47,126.91,126.83,24.55161776]
[1766183311636,0.06028573,126.88,126.86,0.0513656]
[1766183312227,7.62,126.92,126.86,0.0513656]
[1766183312933,7.62,126.92,126.86,23.2313656]
[1766183313337,0.05506348,126.9,126.86,23.2313656]
[1766183315342,8.18,126.94,126.86,23.2313656]
[1766183315543,8.18,126.94,126.88,24.26]
[1766183316238,0.05909123,126.92,126.9,24.31043744]
[1766183316434,8.38,126.96,126.9,24.31043744]
[1766183317436,0.05630123,126.94,126.9,24.31043744]
[1766183328848,56.67,126.97,126.9,24.31043744]
[1766183329746,0.05700639,126.95,126.9,24.31043744]
[1766183342265,50.24854083,126.97,126.91,24.26]
[1766183342266,46.54,126.97,126.91,24.26]
[1766183343258,0.05138309,126.95,126.93,0.05353485]
[1766183345262,0.00138309,126.95,126.93,26.06353485]
[1766183345462,12.04,126.98,126.93,26.06353485]
[1766183346365,0.05903374,126.97,126.93,26.06353485]
[1766183346769,12.28903374,126.97,126.93,0.05353485]
[1766183360572,12.28903374,126.97,126.93,0.00353485]
[1766183360979,13.35,126.95,126.93,0.00353485]
[1766183368382,0.05903374,126.97,126.93,0.00353485]
[1766183368383,13.88903374,126.97,126.93,0.00353485]
[1766183399113,13.88903374,126.97,126.88,26.4]
[1766183399415,13.83,126.97,126.88,26.4]
[1766183400104,0.05233647,126.94,126.91,0.05933445]
[1766183400301,0.05233647,126.94,126.91,0.05650891]
[1766183401015,15.77233647,126.94,126.91,0.05650891]
[1766183401216,15.77233647,126.94,126.86,26.4]
[1766183401414,15.72,126.94,126.86,26.4]
[1766183402315,0.05644374,126.91,126.89,0.05913557]
[1766183403414,15.80644374,126.91,126.86,26.4]
[1766183404412,15.80644374,126.91,126.87,0.05764342]
[1766183426535,15.80644374,126.91,126.82,180.07334365]
[1766183426536,15.72,126.89,126.82,27.3]
[1766183426735,15.72,126.89,126.8,27.3]
[1766183426950,15.72,126.88,126.8,28.671807]
[1766183427542,0.05011333,126.85,126.83,0.05185086]
[1766183433049,15.72011333,126.85,126.8,1.371807]
[1766183433956,15.72011333,126.85,126.79,27.3]
[1766183434346,15.72011333,126.85,126.81,0.05163517]
[1766183435456,15.72011333,126.85,126.81,0.00163517]
[1766183436044,15.72011333,126.85,126.78,28.40210448]
[1766183437052,15.72011333,126.85,126.8,0.05874033]
[1766183446672,15.44,126.83,126.75,27.03]
[1766183446868,15.43,126.82,126.75,27.03]
[1766183447661,0.05360614,126.8,126.77,0.05490383]
[1766183447972,15.47360614,126.8,126.73,27.03]
[1766183448765,15.47360614,126.8,126.75,0.04984273]
[1766183456768,19.18680731,126.8,126.71,28.40278107]
[1766183456971,19.13320117,126.8,126.71,32.11598224]
[1766183457771,0.05290599,126.77,126.74,0.0564498]
[1766183459672,15.27,126.76,126.71,30.74320117]
[1766183459872,15.27,126.76,126.71,27.03]
[1766183460374,15.27,126.76,126.69,28.40297063]
[1766183460673,0.05095738,126.74,126.69,28.40297063]
[1766183461169,3.71320117,126.78,126.7,30.74320117]
[1766183461170,15.2,126.78,126.7,30.74320117]
[1766183461367,15.2,126.78,126.73,27.03]
[1766183461769,15.2,126.78,126.71,27.03]
[1766183461969,15.25,126.8,126.74,27.03]
[1766183462172,15.25,126.8,126.76,0.05095738]
[1766183462477,0.05291903,126.78,126.72,27.03]
[1766183465665,15.15,126.77,126.72,27.03]
[1766183465870,15.15,126.77,126.7,26.48]
[1766183466171,0.05973969,126.75,126.7,26.48]
[1766183476973,14.75,126.79,126.71,26.53335145]
[1766183477282,14.75,126.79,126.71,26.48]
[1766183477768,14.75,126.79,126.71,30.19320117]
[1766183477968,0.00157679,126.76,126.74,26.53437071]
[1766183478178,14.82,126.83,126.74,26.53437071]
[1766183478378,14.82,126.83,126.74,26.48]
[1766183479279,0.05746766,126.8,126.77,0.05449862]
[1766183479682,14.80746766,126.8,126.74,28.44]
[1766183479981,14.75,126.8,126.74,28.44]
[1766183480683,0.05661945,126.78,126.76,0.05681786]
[1766183482971,14.61,126.82,126.76,28.49681786]
[1766183483171,14.61,126.82,126.76,28.44]
[1766183484070,0.05208455,126.8,126.78,0.05752224]
[1766183485683,14.59208455,126.8,126.74,28.44]
[1766183486679,14.59208455,126.8,126.76,0.05591507]
[1766183494596,0.05208455,126.8,126.76,27.00591507]
[1766183515303,7.15388455,126.8,126.76,27.00591507]
[1766183516306,7.15388455,126.8,126.76,12.72911507]
[1766183516494,7.15388455,126.8,126.72,14.65388951]
[1766183516699,7.1018,126.8,126.72,14.65388951]
[1766183517305,0.05968161,126.77,126.72,14.65388951]
[1766183517510,110.458,126.82,126.72,14.65388951]
[1766183517706,136.6334,126.81,126.73,14.65388951]
[1766183517907,110.471,126.8,126.72,14.65388951]
[1766183518406,0.05471154,126.77,126.74,14.26768303]
[1766183518601,0.05471154,126.77,126.74,8.303e-05]
[1766183519818,7.15821154,126.77,126.74,8.303e-05]
[1766183522422,7.15821154,126.77,126.72,26.95]
[1766183524313,32.83821154,126.77,126.72,26.95]
[1766183526320,25.73471154,126.77,126.72,26.95]
[1766183531824,0.05471154,126.77,126.72,26.95]
[1766183554552,0.05471154,126.77,126.72,34.056]
[1766183554851,0.05471154,126.77,126.73,27.21]
[1766183555045,0.00471154,126.77,126.75,27.21]
[1766183559650,0.00471154,126.77,126.75,34.3142]
[1766183560356,0.00471154,126.77,126.76,27.21]
[1766183562953,36.56,126.83,126.77,27.21]
[1766183563154,29.63682345,126.87,126.79,2.65]
[1766183563553,29.63682345,126.87,126.8,2.65]
[1766183564165,0.05407361,126.85,126.82,0.05739059]
[1766183567355,0.00407361,126.85,126.82,2.79739059]
[1766183567685,72.52,126.89,126.82,2.79739059]
[1766183568563,0.0571805,126.87,126.82,2.79739059]
[1766183590778,27.1,126.91,126.82,2.79739059]
[1766183590977,27.1,126.91,126.82,2.74]
[1766183591781,0.0594672,126.88,126.85,0.05207283]
[1766183592086,0.0594672,126.88,126.85,2.40207283]
[1766183596602,27.1594672,126.88,126.85,0.05207283]
[1766183606796,0.0594672,126.88,126.85,0.05207283]
[1766183607099,0.0594672,126.88,126.85,0.63207283]
[1766183609400,25.15,126.92,126.85,0.63207283]
[1766183609605,25.15,126.92,126.86,0.32]
[1766183610406,0.04998486,126.9,126.88,0.05526006]
[1766183613799,25.15,126.94,126.88,0.05526006]
[1766183614911,0.05442142,126.92,126.88,0.05526006]
[1766183620500,0.05442142,126.92,126.88,9.874615]
[1766183620910,0.05442142,126.92,126.88,0.05526006]
[1766183623209,0.05442142,126.92,126.88,9.874615]
[1766183624307,0.05442142,126.92,126.88,0.05526006]
[1766183624612,25.46,127.02,126.9,9.81935494]
[1766183624913,25.46,127.02,126.91,56.37935494]
[1766183625308,25.46,127.01,126.91,56.37935494]
[1766183625614,7.0897,127.02,126.91,56.37935494]
[1766183625615,0.05363665,126.97,126.95,0.05653022]
[1766183625817,0.05238231,126.97,126.95,0.05653022]
[1766183626802,25.46,127.03,126.95,0.05653022]
[1766183627008,25.46,127.03,126.93,110.3559]
[1766183627216,25.46,127.03,126.95,7.0931]
[1766183627411,25.46,127.03,126.96,46.54]
[1766183627814,0.06050539,127.01,126.98,0.05944263]
[1766183629109,25.52050539,127.01,126.93,7.0941]
[1766183629313,25.46,127.01,126.94,46.54]
[1766183630231,0.05842867,126.99,126.96,0.05391818]
[1766183634721,25.51842867,126.99,126.96,0.00391818]
[1766183644238,25.51842867,126.99,126.89,7.0963]
[1766183644438,25.46,126.99,126.89,7.0963]
[1766183644634,31.24685548,126.99,126.87,69.99119601]
[1766183644836,24.21,126.96,126.87,23.47119601]
[1766183645040,24.21,126.96,126.83,162.74375548]
[1766183645241,0.05508571,126.91,126.88,0.05059188]
[1766183645430,0.0565002,126.91,126.88,0.05788097]
[1766183647644,24.21,126.92,126.88,0.05788097]
[1766183648548,0.05984067,126.91,126.88,0.05788097]
[1766183648939,24.26984067,126.91,126.88,0.05788097]
[1766183649838,24.26984067,126.91,126.83,12.88675548]
[1766183650044,24.21,126.91,126.83,12.88675548]
[1766183650848,0.05076624,126.88,126.86,0.05483084]
[1766183653242,24.21,126.91,126.86,0.05483084]
[1766183654447,24.2640643,126.9,126.86,0.05483084]
[1766183654748,24.2640643,126.9,126.87,0.05751911]
[1766183666567,24.2640643,126.9,126.84,23.93104446]
[1766183666770,24.2640643,126.9,126.83,7.0999]
[1766183667267,24.2640643,126.9,126.83,30.43655276]
[1766183667562,24.2640643,126.9,126.85,0.06005666]
[1766183669556,24.2640643,126.9,126.85,5.666e-05]
[1766183670366,23.34,126.89,126.79,3.71110802]
[1766183670773,23.34,126.89,126.81,3.71110802]
[1766183670962,23.34,126.89,126.81,27.29517709]
[1766183671272,23.34,126.89,126.81,3.71110802]
[1766183671472,0.05094942,126.86,126.84,0.05336261]
[1766183671674,0.05544537,126.86,126.84,0.05301585]
[1766183677584,23.46544537,126.86,126.84,0.00301585]
[1766183680480,23.46544537,126.86,126.79,3.71110802]
[1766183681480,23.46544537,126.86,126.81,0.06055647]
[1766183688986,23.46544537,126.86,126.81,0.00055647]
[1766183698597,30.56384537,126.86,126.81,0.00055647]
[1766183698787,23.41,126.85,126.81,0.00055647]
[1766183701998,30.509,126.85,126.81,0.00055647]
[1766183702200,23.41,126.84,126.81,0.00055647]
[1766183706302,23.41,126.84,126.78,1.85513418]
[1766183707102,0.05446197,126.82,126.8,0.05687602]
[1766183709808,22.37446197,126.82,126.8,0.05687602]
[1766183715907,22.37446197,126.82,126.78,1.85513418]
[1766183716821,22.37446197,126.82,126.79,0.03532057]
[1766183722325,22.37446197,126.82,126.75,13.53457099]
[1766183723927,22.37446197,126.82,126.76,9.81935494]
[1766183724229,22.37446197,126.82,126.75,13.53457099]
[1766183725129,22.37446197,126.82,126.76,9.81935494]
[1766183725427,22.37446197,126.82,126.76,33.84596751]
[1766183729921,22.37446197,126.82,126.77,9.81935494]
[1766183738639,22.37446197,126.82,126.78,9.81935494]
[1766183738640,0.05446197,126.82,126.78,9.81935494]
[1766183739542,0.05446197,126.82,126.79,9.81935494]
[1766183739947,20.05,126.86,126.78,9.81935494]
[1766183740146,20.05,126.86,126.76,140.33467991]
[1766183740147,20.05,126.86,126.79,9.81935494]
[1766183741034,0.05653415,126.84,126.81,0.05446197]
[1766183758549,20.05,126.87,126.81,0.05446197]
[1766183758853,20.05,126.87,126.81,9.81935494]
[1766183759245,20.05,126.87,126.81,16.92015494]
[1766183759752,0.0525763,126.85,126.83,0.05277032]
[1766183759953,20.05,126.87,126.83,0.05277032]
[1766183760948,0.05995344,126.86,126.83,0.05277032]
[1766183776467,19.09995344,126.86,126.79,16.92135494]
[1766183777358,19.09995344,126.86,126.81,0.05057477]
[1766183778168,19.09995344,126.86,126.79,16.92135494]
[1766183778169,19.09995344,126.86,126.78,56.37935494]
[1766183778363,19.04,126.86,126.79,9.81935494]
[1766183778560,19.04,126.86,126.78,56.37935494]
[1766183779368,18.72126406,126.83,126.81,0.05041041]
[1766183779563,18.72126406,126.83,126.81,0.00041041]
[1766183782569,18.72126406,126.83,126.75,9.81935494]
[1766183782770,18.67,126.83,126.75,9.81935494]
[1766183783371,18.67,126.83,126.73,63.48465494]
[1766183783572,0.05326151,126.79,126.73,63.48465494]
[1766183784372,18.72326151,126.79,126.73,63.48465494]
[1766183784571,18.72326151,126.79,126.73,86.65502225]
[1766183785470,18.72326151,126.79,126.73,79.54972225]
[1766183787380,18.72326151,126.79,126.73,69.73036731]
[1766183820008,18.72326151,126.79,126.73,46.56]
[1766183822302,18.72326151,126.79,126.73,70.63496187]
[1766183823311,18.72326151,126.79,126.73,46.56]
[1766183824603,18.72326151,126.79,126.73,56.37935494]
[1766183826406,18.72326151,126.79,126.73,80.49220776]
[1766183831211,7.1015,126.81,126.74,13.53712081]
[1766183831212,17.41,126.81,126.74,13.53712081]
[1766183831418,17.41,126.81,126.75,9.81935494]
[1766183832317,0.05616561,126.79,126.77,0.05521903]
[1766183846125,16.73,126.83,126.77,0.05521903]
[1766183847320,0.00401398,126.81,126.77,0.05521903]
[1766183847520,16.73,126.86,126.78,3.71776587]
[1766183848528,0.05323442,126.83,126.81,0.05061764]
[1766183854933,16.14,126.87,126.81,0.05061764]
[1766183856032,0.06065449,126.85,126.81,0.05061764]
[1766183859933,0.00065449,126.85,126.81,0.05061764]
[1766183862548,0.00065449,126.85,126.81,7.15151764]
[1766183880367,17.44440419,126.89,126.82,7.1004]
[1766183880563,16.14,126.91,126.81,116.26163499]
[1766183880762,16.14,126.91,126.82,46.56]
[1766183880962,110.3237,126.97,126.84,116.23923499]
[1766183880963,16.14,126.96,126.84,116.23923499]
[1766183881163,16.14,126.96,126.83,110.4438]
[1766183881164,16.14,126.96,126.87,116.21223499]
[1766183881366,16.14,126.96,126.9,0.04991521]
[1766183882573,0.05987741,126.94,126.9,7.14571521]
[1766183887376,0.05987741,126.94,126.9,0.04991521]
[1766183887563,16.32987741,126.94,126.9,0.04991521]
[1766183903495,0.05987741,126.94,126.9,7.14541521]
[1766183903695,15.17,126.95,126.9,0.04991521]
[1766183903893,14.92319109,126.95,126.9,0.04991521]
[1766183904095,2.48019109,126.95,126.91,7.0952]
[1766183904294,5.7927603,127.03,126.9,110.42661521]
[1766183904498,5.7927603,127.06,126.93,110.3531]
[1766183904702,0.06056633,127.0,126.98,0.05854791]
[1766183904899,0.05628266,127.0,126.98,0.05163256]
[1766183905099,0.05628266,127.0,126.98,0.00163256]
[1766183906506,15.22628266,127.0,126.98,0.00163256]
[1766183909406,0.05628266,127.0,126.98,0.00163256]
[1766183917414,15.17,127.03,126.98,0.00163256]
[1766183918408,0.05690324,127.02,126.98,0.00163256]
[1766183918611,16.45690324,127.02,126.98,0.00163256]
[1766183934222,16.45690324,127.02,126.94,37.65698133]
[1766183934420,16.4,127.02,126.94,27.83762639]
[1766183935220,0.05462206,126.99,126.97,0.00489602]
[1766183935420,16.4,127.0,126.97,0.00489602]
[1766183936425,16.44992761,127.0,126.97,0.00489602]
[1766183951934,16.44992761,127.0,126.95,0.00425096]
[1766183952139,16.44992761,127.0,126.93,7.094]
[1766183953434,20.15312074,127.0,126.91,31.14537498]
[1766183953734,20.10319313,127.0,126.91,7.0951]
[1766183954236,16.45,126.96,126.91,7.0951]
[1766183955236,16.45,126.96,126.92,0.05119704]
[1766183955633,16.45,126.96,126.92,0.00119704]
[1766183963941,16.45,126.96,126.89,3.70319313]
[1766183964149,16.45,126.96,126.87,22.2673]
[1766183964338,16.45,126.96,126.87,25.97049313]
[1766183964646,16.45,126.96,126.87,49.98336992]
[1766183965051,16.56,126.92,126.87,49.98336992]
[1766183965447,0.05752083,126.93,126.87,49.98336992]
[1766183965448,0.05752083,126.93,126.88,22.267]
[1766183965637,0.05752083,126.93,126.89,3.70319313]
[1766183965834,0.05752083,126.93,126.89,3.70784987]
[1766183966034,16.61752083,126.93,126.9,0.05697649]
[1766183967652,0.05752083,126.93,126.9,0.05697649]
[1766183980452,0.05752083,126.93,126.9,16.09697649]
[1766183981844,16.16,126.96,126.9,16.09697649]
[1766183982645,0.05225524,126.94,126.9,16.09697649]
[1766183997168,0.05225524,126.94,126.9,23.19287649]
[1766183998270,0.05225524,126.94,126.91,16.04]
[1766184001066,16.16,127.0,126.93,16.04]
[1766184001656,16.16,127.0,126.94,16.04]
[1766184002065,0.0540784,126.98,126.96,0.05445825]
[1766184012774,15.9140784,126.98,126.91,16.88]
[1766184013678,15.9140784,126.98,126.93,0.05391963]
[1766184014378,15.9140784,126.98,126.89,9.79438538]
[1766184014578,15.86,126.98,126.88,26.67438538]
[1766184015175,15.86,126.98,126.88,33.77128538]
[1766184015377,15.91461897,126.94,126.88,33.77128538]
[1766184016282,15.91461897,126.94,126.89,16.88]
[1766184016478,15.91461897,126.94,126.9,0.05207922]
[1766184018476,0.05461897,126.94,126.9,16.93207922]
[1766184019083,15.86,126.96,126.91,15.53]
[1766184020191,0.05456321,126.95,126.91,15.53]
[1766184021696,16.00456321,126.95,126.9,0.05207922]
[1766184024190,16.00456321,126.95,126.9,0.00207922]
[1766184025491,16.00456321,126.95,126.85,15.53]
[1766184025792,15.95,126.95,126.85,15.53]
[1766184026491,0.05878451,126.91,126.89,0.05614046]
[1766184030294,15.95,126.94,126.89,15.58614046]
[1766184030503,15.95,126.94,126.89,15.53]
[1766184031500,0.04995778,126.93,126.9,0.05413871]
[1766184036519,0.04995778,126.93,126.9,17.25413871]
[1766184039925,16.05,127.03,126.95,17.2]
[1766184040120,16.05,127.03,126.96,17.2]
[1766184041023,0.05806519,127.01,126.98,0.05537666]
[1766184052622,16.10806519,127.01,126.98,0.05537666]
[1766184072062,15.76,127.05,126.98,17.40537666]
[1766184072265,15.76,127.05,126.98,17.35]
[1766184072464,15.76,127.05,127.0,17.35]
[1766184072662,15.76,127.05,126.97,21.05777425]
[1766184073055,0.05614494,127.02,127.0,0.05012391]
[1766184079663,15.72,127.05,127.0,0.05012391]
[1766184080569,0.05604764,127.04,127.0,0.05012391]
[1766184080771,15.77604764,127.04,127.0,0.05012391]
[1766184081765,15.72,127.08,127.0,20.28789816]
[1766184081968,15.72,127.08,127.02,20.23777425]
[1766184082964,0.05501873,127.06,127.04,0.05639268]
[1766184095274,16.93501873,127.06,126.99,25.91536136]
[1766184095473,16.88,127.06,126.99,16.14]
[1766184096377,16.88,127.06,127.01,0.06026546]
[1766184096378,0.0568735,127.04,127.01,0.06026546]
[1766184108987,16.9368735,127.04,127.01,0.06026546]
[1766184111790,16.9368735,127.04,126.98,25.91536136]
[1766184112086,16.9368735,127.04,126.98,16.14]
[1766184112976,16.9368735,127.04,127.0,0.05564458]
[1766184113480,16.9368735,127.04,126.98,16.14]
[1766184114489,16.9368735,127.04,127.0,0.05374652]
[1766184116076,0.0568735,127.04,127.0,16.19374652]
[1766184117589,0.0568735,127.04,127.01,16.14]
[1766184118986,0.0568735,127.04,127.0,0.05374652]
[1766184120991,0.0568735,127.04,127.0,16.19374652]
[1766184125697,0.0568735,127.04,127.0,25.96910788]
[1766184126896,17.1368735,127.04,127.0,0.05374652]
[1766184128389,17.1368735,127.04,127.0,9.82910788]
[1766184128786,0.0568735,127.04,127.0,26.74910788]
[1766184135298,0.0568735,127.04,127.01,9.77536136]
[1766184137707,0.0568735,127.04,127.0,26.74910788]
[1766184139206,0.0568735,127.04,127.01,9.77536136]
[1766184139706,16.98,127.09,127.02,15.85]
[1766184140706,0.05427995,127.07,127.04,0.0574599]
[1766184154516,16.29427995,127.07,127.04,0.0574599]
[1766184154819,16.29427995,127.07,127.02,15.85]
[1766184155813,16.29427995,127.07,127.03,0.05578432]
[1766184157122,16.29427995,127.07,127.0,26.37536136]
[1766184157323,16.29427995,127.07,127.0,16.6]
[1766184157725,16.24,127.06,127.0,16.6]
[1766184157922,16.24,127.06,126.99,9.77536136]
[1766184158127,0.05614369,127.04,127.01,0.05179036]
[1766184158327,16.29614369,127.04,127.01,0.05179036]
[1766184178240,0.05614369,127.04,127.01,0.05179036]
[1766184181749,16.29614369,127.04,127.01,0.05179036]
[1766184182044,16.29614369,127.04,126.98,26.37536136]
[1766184182244,16.29614369,127.04,126.97,9.77536136]
[1766184182445,16.24,127.04,126.97,9.77536136]
[1766184183043,16.24,127.04,126.99,0.05930081]
[1766184183240,16.24,127.01,126.99,0.05930081]
[1766184185253,0.05263352,127.02,126.99,0.05930081]
[1766184185652,17.27263352,127.02,126.99,0.05930081]
[1766184199356,0.05263352,127.02,126.99,0.05930081]
[1766184216277,16.65263352,127.02,126.99,0.05930081]
[1766184218186,0.05263352,127.02,126.99,0.05930081]
[1766184218373,0.05263352,127.02,126.99,9.83466217]
[1766184218573,16.65263352,127.02,126.99,0.05930081]
[1766184218984,16.65263352,127.02,126.98,9.77536136]
[1766184219485,16.65263352,127.02,126.97,9.77536136]
[1766184219683,16.65263352,127.02,126.96,26.77536136]
[1766184219885,16.65263352,127.02,126.98,0.02032937]
[1766184225290,0.05263352,127.02,126.98,17.02032937]
[1766184225493,0.05263352,127.02,126.98,26.79569073]
[1766184225881,0.05263352,127.02,126.98,33.88679073]
[1766184226589,0.05263352,127.02,126.99,33.86626136]
[1766184227592,0.05263352,127.02,126.99,26.77536136]
[1766184228090,0.05263352,127.02,126.99,17.0]
[1766184228495,0.05263352,127.02,126.98,9.79569073]
[1766184229394,16.65263352,127.02,126.98,9.79569073]
[1766184229589,16.65263352,127.02,126.98,0.02032937]
[1766184230795,16.65263352,127.02,126.98,0.00032937]
[1766184243908,16.65263352,127.02,126.98,9.77569073]
[1766184244102,16.65263352,127.02,126.98,26.53569073]
[1766184244312,16.65263352,127.02,126.99,9.77536136]
[1766184244313,0.05263352,127.02,126.99,9.77536136]
[1766184245012,0.05263352,127.02,126.99,26.53536136]
[1766184245906,0.05263352,127.02,126.99,16.76]
[1766184246303,0.05263352,127.02,126.99,26.53536136]
[1766184250612,0.05263352,127.02,126.99,16.76]
[1766184253817,0.05263352,127.02,126.99,26.53536136]
[1766184254017,0.05263352,127.02,126.98,9.77569073]
[1766184254316,0.05263352,127.02,126.98,0.00032937]
[1766184258123,0.05263352,127.02,126.98,16.76032937]
[1766184269827,17.54263352,127.02,126.98,16.76032937]
[1766184270020,17.54263352,127.02,126.98,0.00032937]
[1766184272328,17.49,127.01,126.95,9.77536136]
[1766184272532,17.49,127.01,126.93,26.65536136]
[1766184273143,24.5815,126.99,126.93,16.88]
[1766184273440,0.05538839,126.97,126.93,16.88]
[1766184275647,24.63778839,126.97,126.9,5.78897915]
[1766184275846,24.63778839,126.97,126.89,1.82272456]
[1766184276148,0.0584854,126.94,126.89,1.82272456]
[1766184277646,0.0584854,126.94,126.9,17.21]
[1766184283154,0.0584854,126.94,126.88,1.36964736]
[1766184283155,17.5484854,126.94,126.88,17.21]
[1766184283853,17.5484854,126.94,126.86,18.58110437]
[1766184284064,0.0500493,126.91,126.86,18.58110437]
[1766184284452,7.0935,126.95,126.88,17.21]
[1766184284759,64.01,126.96,126.88,17.21]
[1766184284961,64.01,126.96,126.88,20.91964313]
[1766184285543,0.00101988,126.93,126.91,17.2600493]
[1766184288560,0.00101988,126.93,126.91,0.0500493]
[1766184290661,0.00101988,126.93,126.91,17.2600493]
[1766184292361,0.00101988,126.93,126.91,0.0500493]
[1766184293059,0.00101988,126.93,126.91,17.2600493]
[1766184300366,0.00101988,126.93,126.86,14.85627094]
[1766184300572,0.00101988,126.93,126.86,1.37126645]
[1766184301370,7.09561988,126.93,126.88,0.05]
[1766184302275,7.0952,126.92,126.88,0.05]
[1766184302476,7.0952,126.92,126.86,1.37126645]
[1766184303578,7.0952,126.92,126.88,0.05273059]